fUST/lending_fUST_20250530
["ID","MTS","AMOUNT","RATE_DAILY","PERIOD"]
[363091318,1748573457239,-151.0,0.0002,2]
[363091319,1748573457248,-430.0,0.0002,2]
[363091320,1748573457258,-430.0,0.0002,2]
[363091321,1748573457268,-430.0,0.0002,2]
[363091323,1748573457278,-151.0,0.0002,2]
[363091325,1748573457287,-151.0,0.00020021,2]
[363091327,1748573457296,-555.568175,0.00020021,2]
[363091328,1748573457306,-555.568175,0.00020021,2]
[363091330,1748573457315,-1340.62949797,0.00020072,2]
[363091332,1748573457324,-1291.42115659,0.00020105,2]
[363091334,1748573457334,-588.487475,0.00020128,2]
[363091336,1748573457343,-588.487475,0.00020128,2]
[363091338,1748573457352,-247.766992,0.00020128,2]
[363091341,1748573457362,-247.766992,0.00020128,2]
[363091343,1748573457371,-178.328034,0.00020128,2]
[363091345,1748573457380,-151.0,0.00020128,2]
[363091347,1748573457391,-151.0,0.00020128,2]
[363091349,1748573457400,-151.0,0.00020128,2]
[363091351,1748573457409,-151.0,0.00020128,2]
[363091353,1748573457418,-1770.766208,0.00020128,2]
[363091355,1748573457428,-151.0,0.00020128,2]
[363091357,1748573457437,-1770.766208,0.00020128,2]
[363091359,1748573457447,-151.0,0.00020128,2]
[363091361,1748573457456,-151.0,0.00020128,2]
[363091363,1748573457465,-203.359013,0.00020128,2]
[363091365,1748573457474,-217.137971,0.00020128,2]
[363091367,1748573457483,-217.137971,0.00020128,2]
[363091369,1748573457493,-151.0,0.00020128,2]
[363091371,1748573457502,-256.807157,0.00020128,2]
[363091373,1748573457512,-194.610595,0.00020128,2]
[363091375,1748573457521,-194.610595,0.00020128,2]
[363091377,1748573457531,-151.0,0.00020128,2]
[363091379,1748573457540,-539.834752,0.00020128,2]
[363091381,1748573457552,-539.834752,0.00020128,2]
[363091383,1748573457562,-260.507174,0.00020128,2]
[363091385,1748573457571,-260.507174,0.00020128,2]
[363091387,1748573457580,-262.850828,0.00020128,2]
[363091389,1748573457590,-262.850828,0.00020128,2]
[363091391,1748573457599,-1240.228968,0.00020128,2]
[363091393,1748573457609,-1240.228968,0.00020128,2]
[363091395,1748573457619,-422.051508,0.00020128,2]
[363091397,1748573457627,-422.051508,0.00020128,2]
[363091399,1748573457637,-6395.52298678,0.00020173,2]
[363091401,1748573457647,-1140.9106,0.00020187,2]
[363091403,1748573457656,-1340.62949797,0.00020245,2]
[363091404,1748573457665,-500.0,0.00020273,2]
[363091406,1748573457674,-532.10798937,0.00020273,2]
[363091408,1748573457683,-152.4676974,0.00020273,2]
[363091410,1748573457693,-500.41691899,0.00020273,2]
[363091412,1748573457702,-501.97296009,0.00020273,2]
[363091414,1748573457711,-500.92069016,0.00020273,2]
[363091416,1748573457721,-305.20464989,0.00020273,2]
[363091418,1748573457730,-200.45212168,0.00020273,2]
[363091420,1748573457739,-151.0,0.00020273,2]
[363091422,1748573457748,-323.222834,0.00020273,2]
[363091424,1748573457758,-323.222834,0.00020273,2]
[363091426,1748573457767,-151.0,0.00020273,2]
[363091428,1748573457776,-151.0,0.00020273,2]
[363091430,1748573457786,-167.195699,0.00020273,2]
[363091432,1748573457796,-167.195699,0.00020273,2]
[363091434,1748573457807,-180.740501,0.00020273,2]
[363091436,1748573457816,-180.740501,0.00020273,2]
[363091438,1748573457825,-151.0,0.00020273,2]
[363091440,1748573457834,-588.487475,0.00020273,2]
[363091442,1748573457844,-588.487475,0.00020273,2]
[363091444,1748573457853,-168.474289,0.00020273,2]
[363091447,1748573457863,-168.474289,0.00020273,2]
[363091449,1748573457873,-151.0,0.00020273,2]
[363091451,1748573457884,-277.66696,0.00020273,2]
[363091452,1748573457893,-430.0,0.00020273,2]
[363091455,1748573457903,-430.0,0.00020273,2]
[363091457,1748573457913,-430.0,0.00020273,2]
[363091459,1748573457922,-211.86947749,0.00020273,2]
[363091460,1748573457932,-430.0,0.00020273,2]
[363091462,1748573457941,-551.09029415,0.00020273,2]
[363091465,1748573457951,-445.52197514,0.00020273,2]
[363091466,1748573457959,-430.0,0.00020273,2]
[363091468,1748573457969,-158.53794833,0.00020273,2]
[363091470,1748573457978,-430.0,0.00020273,2]
[363091472,1748573457988,-430.0,0.00020273,2]
[363091474,1748573457997,-430.0,0.00020273,2]
[363091476,1748573458006,-430.0,0.00020273,2]
[363091478,1748573458015,-430.0,0.00020273,2]
[363091480,1748573458025,-1015.55,0.00020273,2]
[363091482,1748573458034,-430.0,0.00020273,2]
[363091484,1748573458044,-430.0,0.00020273,2]
[363091486,1748573458053,-430.0,0.00020273,2]
[363091489,1748573458063,-430.0,0.00020273,2]
[363091491,1748573458075,-430.0,0.00020273,2]
[363091493,1748573458084,-430.0,0.00020273,2]
[363091495,1748573458094,-430.0,0.00020273,2]
[363091497,1748573458103,-591.44,0.00020273,2]
[363091498,1748573458113,-430.0,0.00020273,2]
[363091500,1748573458123,-430.0,0.00020273,2]
[363091502,1748573458132,-430.0,0.00020273,2]
[363091505,1748573458142,-430.0,0.00020273,2]
[363091507,1748573458154,-317.36137453,0.00020273,2]
[363091516,1748573458227,-430.0,0.00020273,2]
[363091518,1748573458242,-430.0,0.00020273,2]
[363091520,1748573458251,-430.0,0.00020273,2]
[363091522,1748573458260,-151.0,0.00020273,2]
[363091524,1748573458268,-430.0,0.00020273,2]
[363091526,1748573458277,-151.0,0.00020273,2]
[363091528,1748573458287,-430.0,0.00020273,2]
[363091530,1748573458296,-430.0,0.00020273,2]
[363091532,1748573458305,-430.0,0.00020273,2]
[363091534,1748573458314,-379.89588254,0.00020273,2]
[363091536,1748573458324,-430.0,0.00020273,2]
[363091538,1748573458333,-430.0,0.00020273,2]
[363091540,1748573458342,-151.931147,0.00020273,2]
[363091542,1748573458351,-430.0,0.00020273,2]
[363091544,1748573458360,-512.79721839,0.00020273,2]
[363091546,1748573458369,-430.0,0.00020273,2]
[363091548,1748573458378,-430.0,0.00020273,2]
[363091550,1748573458387,-151.0,0.00020273,2]
[363091552,1748573458397,-865.548523,0.00020273,2]
[363091554,1748573458406,-556.00547333,0.00020273,2]
[363091556,1748573458415,-865.548523,0.00020273,2]
[363091558,1748573458425,-563.78743599,0.00020273,2]
[363091560,1748573458435,-259.244812,0.00020273,2]
[363091562,1748573458444,-430.0,0.00020273,2]
[363091564,1748573458453,-259.244812,0.00020273,2]
[363091566,1748573458462,-430.0,0.00020273,2]
[363091568,1748573458471,-430.0,0.00020273,2]
[363091570,1748573458482,-430.0,0.00020273,2]
[363091572,1748573458491,-493.71,0.00020273,2]
[363091574,1748573458500,-430.0,0.00020273,2]
[363091576,1748573458509,-651.13,0.00020273,2]
[363091578,1748573458518,-216.96691374,0.00020273,2]
[363091580,1748573458527,-485.18177412,0.00020273,2]
[363091582,1748573458537,-378.99850081,0.00020273,2]
[363091584,1748573458546,-430.0,0.00020273,2]
[363091586,1748573458555,-430.0,0.00020273,2]
[363091588,1748573458564,-430.0,0.00020273,2]
[363091590,1748573458574,-430.0,0.00020273,2]
[363091592,1748573458583,-497.76023912,0.00020273,2]
[363091594,1748573458592,-430.0,0.00020273,2]
[363091595,1748573458601,-430.0,0.00020273,2]
[363091598,1748573458610,-430.0,0.00020273,2]
[363091600,1748573458620,-430.0,0.00020273,2]
[363091602,1748573458629,-430.0,0.00020273,2]
[363091604,1748573458638,-430.0,0.00020273,2]
[363091605,1748573458647,-452.83495075,0.00020273,2]
[363091607,1748573458656,-430.0,0.00020273,2]
[363091610,1748573458666,-430.0,0.00020273,2]
[363091611,1748573458675,-151.0,0.00020273,2]
[363091613,1748573458684,-430.0,0.00020273,2]
[363091615,1748573458693,-430.0,0.00020273,2]
[363091617,1748573458703,-151.0,0.00020273,2]
[363091619,1748573458712,-235.50083165,0.00020273,2]
[363091622,1748573458722,-151.0,0.00020273,2]
[363091623,1748573458732,-446.80332676,0.00020273,2]
[363091625,1748573458741,-2283.15,0.00020273,2]
[363091628,1748573458751,-430.0,0.00020273,2]
[363091630,1748573458760,-151.0,0.00020273,2]
[363091632,1748573458769,-430.0,0.00020273,2]
[363091634,1748573458785,-430.0,0.00020273,2]
[363091637,1748573458804,-447.3368377,0.00020273,2]
[363091640,1748573458821,-422.051508,0.00020273,2]
[363091643,1748573458841,-430.0,0.00020273,2]
[363091647,1748573458861,-430.0,0.00020273,2]
[363091649,1748573458878,-1697.19,0.00020273,2]
[363091652,1748573458895,-3798.2,0.00020273,2]
[363091655,1748573458911,-547.16807517,0.00020273,2]
[363091658,1748573458927,-422.051508,0.00020273,2]
[363091661,1748573458947,-430.0,0.00020273,2]
[363091664,1748573458966,-430.0,0.00020273,2]
[363091666,1748573458979,-436.67791407,0.00020273,2]
[363091669,1748573458996,-430.0,0.00020273,2]
[363091672,1748573459013,-430.0,0.00020273,2]
[363091675,1748573459028,-430.0,0.00020273,2]
[363091677,1748573459040,-493.13815954,0.00020273,2]
[363091679,1748573459054,-430.0,0.00020273,2]
[363091682,1748573459069,-430.0,0.00020273,2]
[363091684,1748573459085,-818.5,0.00020273,2]
[363091687,1748573459099,-4950.37,0.00020273,2]
[363091690,1748573459115,-430.0,0.00020273,2]
[363091692,1748573459128,-430.0,0.00020273,2]
[363091695,1748573459142,-596.2,0.00020273,2]
[363091697,1748573459157,-504.36,0.00020273,2]
[363091700,1748573459172,-430.0,0.00020273,2]
[363091702,1748573459185,-452.09207936,0.00020273,2]
[363091705,1748573459200,-473.04,0.00020273,2]
[363091707,1748573459213,-598.36,0.00020273,2]
[363091710,1748573459227,-430.0,0.00020273,2]
[363091712,1748573459242,-430.0,0.00020273,2]
[363091715,1748573459255,-3521.42,0.00020273,2]
[363091717,1748573459269,-442.76128627,0.00020273,2]
[363091720,1748573459283,-430.0,0.00020273,2]
[363091723,1748573459303,-455.25,0.00020273,2]
[363091725,1748573459317,-430.0,0.00020273,2]
[363091728,1748573459331,-430.0,0.00020273,2]
[363091730,1748573459345,-704.27,0.00020273,2]
[363091733,1748573459360,-4581.47,0.00020273,2]
[363091735,1748573459371,-447.18095242,0.00020273,2]
[363091737,1748573459380,-430.0,0.00020273,2]
[363091739,1748573459391,-430.0,0.00020273,2]
[363091741,1748573459400,-461.10801608,0.00020273,2]
[363091743,1748573459409,-856.93,0.00020273,2]
[363091744,1748573459419,-430.0,0.00020273,2]
[363091746,1748573459429,-430.0,0.00020273,2]
[363091747,1748573459439,-430.0,0.00020273,2]
[363091748,1748573459449,-914.35,0.00020273,2]
[363091749,1748573459459,-2859.7,0.00020273,2]
[363091750,1748573459468,-430.0,0.00020273,2]
[363091751,1748573459478,-1248.41,0.00020273,2]
[363091752,1748573459488,-497.109724,0.00020273,2]
[363091753,1748573459498,-1247.05,0.00020273,2]
[363091754,1748573459507,-497.109724,0.00020273,2]
[363091755,1748573459517,-430.0,0.00020273,2]
[363091756,1748573459527,-430.0,0.00020273,2]
[363091757,1748573459539,-430.0,0.00020273,2]
[363091758,1748573459732,-430.0,0.00020273,2]
[363091759,1748573459746,-430.0,0.00020273,2]
[363091760,1748573459755,-446.98836196,0.00020273,2]
[363091761,1748573459765,-708.84,0.00020273,2]
[363091762,1748573459775,-430.0,0.00020273,2]
[363091763,1748573459785,-430.0,0.00020273,2]
[363091764,1748573459794,-3595.1,0.00020273,2]
[363091765,1748573459805,-430.0,0.00020273,2]
[363091766,1748573459815,-430.0,0.00020273,2]
[363091767,1748573459824,-430.0,0.00020273,2]
[363091768,1748573459834,-430.0,0.00020273,2]
[363091769,1748573459843,-430.0,0.00020273,2]
[363091770,1748573459853,-430.0,0.00020273,2]
[363091771,1748573459862,-430.0,0.00020273,2]
[363091772,1748573459872,-430.0,0.00020273,2]
[363091773,1748573459881,-1338.1,0.00020273,2]
[363091774,1748573459891,-430.0,0.00020273,2]
[363091775,1748573459900,-430.0,0.00020273,2]
[363091776,1748573459910,-1468.23,0.00020273,2]
[363091777,1748573459920,-490.0,0.00020273,2]
[363091778,1748573459930,-430.0,0.00020273,2]
[363091779,1748573459939,-430.0,0.00020273,2]
[363091780,1748573459948,-430.0,0.00020273,2]
[363091781,1748573459958,-430.0,0.00020273,2]
[363091782,1748573459967,-430.0,0.00020273,2]
[363091783,1748573459976,-911.27,0.00020273,2]
[363091784,1748573459986,-430.0,0.00020273,2]
[363091785,1748573459995,-456.68155319,0.00020273,2]
[363091786,1748573460005,-1549.3,0.00020273,2]
[363091787,1748573460014,-151.0,0.00020273,2]
[363091788,1748573460024,-430.0,0.00020273,2]
[363091789,1748573460033,-430.0,0.00020273,2]
[363091790,1748573460043,-430.0,0.00020273,2]
[363091791,1748573460055,-430.0,0.00020273,2]
[363091792,1748573460066,-2031.41,0.00020273,2]
[363091793,1748573460078,-1879.59,0.00020273,2]
[363091794,1748573460088,-430.0,0.00020273,2]
[363091795,1748573460097,-430.0,0.00020273,2]
[363091796,1748573460107,-430.0,0.00020273,2]
[363091797,1748573460117,-503.58,0.00020273,2]
[363091798,1748573460127,-259.420876,0.00020273,2]
[363091799,1748573460136,-430.0,0.00020273,2]
[363091800,1748573460147,-929.75,0.00020273,2]
[363091801,1748573460157,-259.420876,0.00020273,2]
[363091802,1748573460166,-430.0,0.00020273,2]
[363091803,1748573460176,-152.20266793,0.00020273,2]
[363091804,1748573460186,-561.53,0.00020273,2]
[363091805,1748573460197,-430.0,0.00020273,2]
[363091806,1748573460207,-430.0,0.00020273,2]
[363091807,1748573460218,-430.0,0.00020273,2]
[363091808,1748573460228,-625.168653,0.00020273,2]
[363091809,1748573460237,-430.0,0.00020273,2]
[363091810,1748573460247,-625.168653,0.00020273,2]
[363091811,1748573460257,-430.0,0.00020273,2]
[363091812,1748573460266,-430.0,0.00020273,2]
[363091813,1748573460276,-430.0,0.00020273,2]
[363091814,1748573460286,-151.0,0.00020273,2]
[363091815,1748573460298,-151.0,0.00020273,2]
[363091816,1748573460308,-856.196143,0.00020273,2]
[363091817,1748573460317,-856.196143,0.00020273,2]
[363091818,1748573460327,-430.0,0.00020273,2]
[363091819,1748573460336,-527.67,0.00020273,2]
[363091820,1748573460346,-430.0,0.00020273,2]
[363091821,1748573460355,-661.88,0.00020273,2]
[363091822,1748573460364,-430.0,0.00020273,2]
[363091823,1748573460374,-430.0,0.00020273,2]
[363091824,1748573460383,-2717.29,0.00020273,2]
[363091825,1748573460392,-430.0,0.00020273,2]
[363091826,1748573460402,-358.2567276,0.00020273,2]
[363091827,1748573460411,-3355.05,0.00020273,2]
[363091828,1748573460421,-430.0,0.00020273,2]
[363091829,1748573460430,-430.0,0.00020273,2]
[363091830,1748573460439,-430.0,0.00020273,2]
[363091832,1748573460448,-430.0,0.00020273,2]
[363091834,1748573460458,-430.0,0.00020273,2]
[363091836,1748573460467,-151.0,0.00020273,2]
[363091838,1748573460476,-552.21,0.00020273,2]
[363091840,1748573460486,-395.98323056,0.00020273,2]
[363091842,1748573460495,-151.0,0.00020273,2]
[363091844,1748573460504,-166.0,0.00020274,2]
[363091846,1748573460514,-151.0,0.000203,4]
[363091848,1748573460523,-664.839,0.0002034,2]
[363091850,1748573460531,-842.5625,0.00020348,3]
[363091852,1748573460541,-151.0,0.00020417,2]
[363091854,1748573460553,-1770.766208,0.00020417,2]
[363091855,1748573460563,-151.0,0.00020417,2]
[363091856,1748573460572,-1770.766208,0.00020417,2]
[363091857,1748573460582,-151.0,0.00020417,2]
[363091859,1748573460591,-151.0,0.00020417,2]
[363091861,1748573460600,-217.137971,0.00020417,2]
[363091863,1748573460609,-217.137971,0.00020417,2]
[363091865,1748573460619,-151.0,0.00020417,2]
[363091867,1748573460629,-194.610595,0.00020417,2]
[363091869,1748573460638,-194.610595,0.00020417,2]
[363091870,1748573460647,-151.0,0.00020417,2]
[363091872,1748573460657,-539.834752,0.00020417,2]
[363091874,1748573460666,-539.834752,0.00020417,2]
[363091876,1748573460675,-262.850828,0.00020417,2]
[363091878,1748573460684,-262.850828,0.00020417,2]
[363091880,1748573460694,-151.0,0.00020417,2]
[363091882,1748573460703,-151.0,0.00020417,2]
[363091884,1748573460712,-287.843736,0.00020417,2]
[363091886,1748573460721,-287.843736,0.00020417,2]
[363091888,1748573460734,-212.7380601,0.00020417,3]
[363091890,1748573460743,-1340.62949797,0.00020417,3]
[363091892,1748573460752,-1291.42115659,0.00020447,2]
[363091894,1748573460761,-151.0,0.000205,4]
[363091896,1748573460771,-538.82024553,0.00020521,2]
[363091898,1748573460780,-501.84926674,0.00020521,2]
[363091900,1748573460789,-503.1630841,0.00020521,2]
[363091902,1748573460801,-1002.64960961,0.00020521,2]
[363091904,1748573460810,-1000.0,0.00020521,2]
[363091906,1748573460819,-519.2260037,0.00020521,2]
[363091908,1748573460828,-1000.0,0.00020521,2]
[363091910,1748573460837,-501.69412432,0.00020521,2]
[363091912,1748573460846,-1000.0,0.00020521,2]
[363091914,1748573460855,-1002.56022389,0.00020521,2]
[363091916,1748573460864,-1200.0,0.00020521,2]
[363091918,1748573460874,-1003.27683097,0.00020521,2]
[363091920,1748573460883,-497.109724,0.00020521,2]
[363091922,1748573460892,-497.109724,0.00020521,2]
[363091924,1748573460902,-259.420876,0.00020521,2]
[363091926,1748573460911,-259.420876,0.00020521,2]
[363091928,1748573460919,-151.0,0.00020547,2]
[363091930,1748573460928,-588.487475,0.00020547,2]
[363091932,1748573460938,-588.487475,0.00020547,2]
[363091934,1748573460947,-247.766992,0.00020547,2]
[363091935,1748573460959,-247.766992,0.00020547,2]
[363091937,1748573460968,-168.474289,0.00020547,2]
[363091939,1748573460977,-168.474289,0.00020547,2]
[363091941,1748573460986,-151.0,0.00020547,2]
[363091943,1748573460995,-151.0,0.00020547,2]
[363091945,1748573461004,-430.0,0.00020547,2]
[363091947,1748573461013,-151.0,0.00020547,2]
[363091949,1748573461023,-512.38590288,0.00020547,2]
[363091951,1748573461033,-430.0,0.00020547,2]
[363091953,1748573461042,-151.0,0.00020547,2]
[363091955,1748573461053,-202.247238,0.00020547,2]
[363091957,1748573461062,-151.0,0.00020547,2]
[363091959,1748573461074,-430.0,0.00020547,2]
[363091961,1748573461084,-260.507174,0.00020547,2]
[363091963,1748573461093,-260.507174,0.00020547,2]
[363091965,1748573461102,-430.0,0.00020547,2]
[363091967,1748573461112,-151.0,0.00020547,2]
[363091969,1748573461121,-313.07910896,0.00020547,2]
[363091971,1748573461130,-430.0,0.00020547,2]
[363091973,1748573461140,-430.0,0.00020547,2]
[363091974,1748573461150,-430.0,0.00020547,2]
[363091975,1748573461159,-1015.55,0.00020547,2]
[363091977,1748573461168,-430.0,0.00020547,2]
[363091979,1748573461178,-430.0,0.00020547,2]
[363091980,1748573461186,-509.45437375,0.00020547,2]
[363091981,1748573461195,-458.82080039,0.00020547,2]
[363091983,1748573461205,-430.0,0.00020547,2]
[363091985,1748573461214,-448.40484658,0.00020547,2]
[363091986,1748573461223,-430.0,0.00020547,2]
[363091988,1748573461233,-591.44,0.00020547,2]
[363091990,1748573461242,-555.568175,0.00020547,2]
[363091992,1748573461251,-355.48466656,0.00020547,2]
[363091993,1748573461260,-430.0,0.00020547,2]
[363091994,1748573461269,-555.568175,0.00020547,2]
[363091995,1748573461279,-430.0,0.00020547,2]
[363091996,1748573461288,-430.0,0.00020547,2]
[363091997,1748573461297,-430.0,0.00020547,2]
[363091998,1748573461308,-430.0,0.00020547,2]
[363091999,1748573461317,-430.0,0.00020547,2]
[363092000,1748573461326,-151.0,0.00020547,2]
[363092001,1748573461335,-230.0,0.00020547,2]
[363092002,1748573461345,-151.0,0.00020547,2]
[363092003,1748573461355,-430.0,0.00020547,2]
[363092004,1748573461364,-430.0,0.00020547,2]
[363092005,1748573461373,-1240.228968,0.00020547,2]
[363092006,1748573461383,-439.02,0.00020547,2]
[363092007,1748573461392,-1240.228968,0.00020547,2]
[363092008,1748573461401,-430.0,0.00020547,2]
[363092009,1748573461410,-430.0,0.00020547,2]
[363092010,1748573461420,-218.58792943,0.00020547,2]
[363092011,1748573461430,-406.64583762,0.00020547,2]
[363092012,1748573461440,-151.0,0.00020547,2]
[363092013,1748573461450,-865.548523,0.00020547,2]
[363092014,1748573461460,-865.548523,0.00020547,2]
[363092015,1748573461471,-259.244812,0.00020547,2]
[363092016,1748573461480,-259.244812,0.00020547,2]
[363092017,1748573461490,-430.0,0.00020547,2]
[363092018,1748573461499,-150.96260043,0.00020547,2]
[363092019,1748573461508,-361.26527999,0.00020547,2]
[363092020,1748573461518,-493.71,0.00020547,2]
[363092021,1748573461528,-430.0,0.00020547,2]
[363092022,1748573461537,-651.13,0.00020547,2]
[363092023,1748573461546,-430.0,0.00020547,2]
[363092024,1748573461558,-430.0,0.00020547,2]
[363092025,1748573461567,-430.0,0.00020547,2]
[363092026,1748573461577,-430.0,0.00020547,2]
[363092027,1748573461586,-343.5487679,0.00020547,2]
[363092028,1748573461596,-430.0,0.00020547,2]
[363092029,1748573461606,-193.03729986,0.00020547,2]
[363092030,1748573461616,-388.12879558,0.00020547,2]
[363092031,1748573461625,-436.76756023,0.00020547,2]
[363092032,1748573461634,-430.0,0.00020547,2]
[363092033,1748573461645,-430.0,0.00020547,2]
[363092034,1748573461654,-151.0,0.00020547,2]
[363092035,1748573461663,-430.0,0.00020547,2]
[363092036,1748573461672,-522.83896586,0.00020547,2]
[363092037,1748573461682,-151.0,0.00020547,2]
[363092038,1748573461691,-151.0,0.00020547,2]
[363092039,1748573461700,-2283.15,0.00020547,2]
[363092040,1748573461710,-430.0,0.00020547,2]
[363092041,1748573461720,-237.9528,0.00020547,2]
[363092042,1748573461729,-430.0,0.00020547,2]
[363092043,1748573461739,-430.0,0.00020547,2]
[363092044,1748573461748,-422.051508,0.00020547,2]
[363092045,1748573461758,-430.0,0.00020547,2]
[363092046,1748573461767,-200.39141335,0.00020547,2]
[363092047,1748573461777,-1697.19,0.00020547,2]
[363092048,1748573461787,-3798.2,0.00020547,2]
[363092049,1748573461796,-422.051508,0.00020547,2]
[363092050,1748573461807,-430.0,0.00020547,2]
[363092051,1748573461816,-430.0,0.00020547,2]
[363092052,1748573461826,-430.0,0.00020547,2]
[363092053,1748573461835,-430.0,0.00020547,2]
[363092054,1748573461844,-430.0,0.00020547,2]
[363092055,1748573461853,-320.1512935,0.00020547,2]
[363092056,1748573461863,-430.0,0.00020547,2]
[363092057,1748573461872,-818.5,0.00020547,2]
[363092058,1748573461881,-4950.37,0.00020547,2]
[363092059,1748573461891,-430.0,0.00020547,2]
[363092060,1748573461900,-430.0,0.00020547,2]
[363092061,1748573461909,-596.2,0.00020547,2]
[363092062,1748573461918,-504.36,0.00020547,2]
[363092063,1748573461928,-430.0,0.00020547,2]
[363092064,1748573461937,-473.04,0.00020547,2]
[363092065,1748573461949,-598.36,0.00020547,2]
[363092066,1748573461958,-430.0,0.00020547,2]
[363092067,1748573461967,-430.0,0.00020547,2]
[363092068,1748573461977,-3521.42,0.00020547,2]
[363092069,1748573461986,-430.0,0.00020547,2]
[363092070,1748573461995,-455.25,0.00020547,2]
[363092071,1748573462005,-461.84019549,0.00020547,2]
[363092072,1748573462014,-430.0,0.00020547,2]
[363092073,1748573462023,-704.27,0.00020547,2]
[363092074,1748573462033,-4581.47,0.00020547,2]
[363092075,1748573462042,-307.03695198,0.00020547,2]
[363092076,1748573462053,-502.07427984,0.00020547,2]
[363092077,1748573462062,-856.93,0.00020547,2]
[363092078,1748573462074,-430.0,0.00020547,2]
[363092079,1748573462084,-430.0,0.00020547,2]
[363092080,1748573462093,-451.487413,0.00020547,2]
[363092081,1748573462103,-914.35,0.00020547,2]
[363092082,1748573462113,-2859.7,0.00020547,2]
[363092083,1748573462123,-458.63732731,0.00020547,2]
[363092084,1748573462132,-1248.41,0.00020547,2]
[363092085,1748573462142,-1247.05,0.00020547,2]
[363092086,1748573462154,-525.0,0.00020547,2]
[363092087,1748573462164,-437.02708098,0.00020547,2]
[363092088,1748573462173,-447.90357451,0.00020547,2]
[363092089,1748573462183,-443.20332421,0.00020547,2]
[363092090,1748573462192,-430.0,0.00020547,2]
[363092091,1748573462202,-708.84,0.00020547,2]
[363092092,1748573462211,-430.0,0.00020547,2]
[363092093,1748573462222,-430.0,0.00020547,2]
[363092094,1748573462231,-3595.1,0.00020547,2]
[363092095,1748573462241,-430.0,0.00020547,2]
[363092096,1748573462251,-430.0,0.00020547,2]
[363092097,1748573462260,-430.0,0.00020547,2]
[363092098,1748573462270,-430.0,0.00020547,2]
[363092099,1748573462279,-430.0,0.00020547,2]
[363092100,1748573462289,-430.0,0.00020547,2]
[363092101,1748573462299,-430.0,0.00020547,2]
[363092102,1748573462308,-430.0,0.00020547,2]
[363092103,1748573462317,-1338.1,0.00020547,2]
[363092104,1748573462326,-430.0,0.00020547,2]
[363092105,1748573462335,-536.72170604,0.00020547,2]
[363092106,1748573462344,-1468.23,0.00020547,2]
[363092107,1748573462354,-430.0,0.00020547,2]
[363092108,1748573462363,-430.0,0.00020547,2]
[363092109,1748573462373,-445.89000041,0.00020547,2]
[363092110,1748573462382,-430.0,0.00020547,2]
[363092111,1748573462392,-911.27,0.00020547,2]
[363092112,1748573462402,-430.0,0.00020547,2]
[363092113,1748573462412,-1549.3,0.00020547,2]
[363092114,1748573462421,-151.0,0.00020547,2]
[363092115,1748573462431,-430.0,0.00020547,2]
[363092116,1748573462439,-438.53618931,0.00020547,2]
[363092117,1748573462449,-430.0,0.00020547,2]
[363092118,1748573462457,-2031.41,0.00020547,2]
[363092119,1748573462467,-1879.59,0.00020547,2]
[363092120,1748573462476,-430.0,0.00020547,2]
[363092121,1748573462486,-430.0,0.00020547,2]